bitfinex/quotes_BTCUSD_20250224
["timestamp","ask_amount","ask_price","bid_price","bid_amount"]
[1740434667742,0.00413617,93867.0,93854.0,0.0008489]
[1740434667967,0.01454085,93866.0,93854.0,0.0008489]
[1740434668221,0.01654085,93866.0,93855.0,0.10264569]
[1740434668477,0.01654085,93866.0,93855.0,0.11299515]
[1740434668743,0.01454085,93866.0,93855.0,0.11299515]
[1740434668972,0.01454085,93868.0,93855.0,0.11299515]
[1740434669212,0.00012982,93869.0,93855.0,0.11299515]
[1740434669672,0.00012982,93869.0,93855.0,0.10264569]
[1740434669914,0.003,93867.0,93855.0,0.10264569]
[1740434670143,0.003,93867.0,93855.0,0.10277551]
[1740434670903,0.003,93867.0,93857.0,0.10264569]
[1740434671143,0.00413617,93897.0,93858.0,0.01194882]
[1740434671372,0.003,93869.0,93860.0,0.10264569]
[1740434671625,0.003,93869.0,93868.0,0.02]
[1740434671870,0.212908,93938.0,93872.0,0.02]
[1740434672135,0.212908,93938.0,93873.0,0.10264569]
[1740434672136,0.159713,93919.0,93873.0,0.10264569]
[1740434672386,0.0017026,93932.0,93886.0,0.10264569]
[1740434672631,0.21293,93928.0,93887.0,0.10264569]
[1740434672879,0.0017026,93932.0,93887.0,0.10264569]
[1740434673147,0.159728,93910.0,93887.0,0.10264569]
[1740434673394,0.01454085,93911.0,93887.0,0.10264569]
[1740434673665,0.159731,93908.0,93887.0,0.10264569]
[1740434673913,0.349195,93907.0,93887.0,0.10264569]
[1740434674136,0.159744,93901.0,93887.0,0.10264569]
[1740434674385,0.01454085,93908.0,93887.0,0.10264569]
[1740434674623,0.01454085,93894.0,93887.0,0.001]
[1740434674884,0.01454085,93891.0,93858.0,0.03194882]
[1740434675129,0.01454085,93891.0,93862.0,0.11346057]
[1740434675371,0.159762,93890.0,93862.0,0.11346057]
[1740434675631,0.212992,93900.0,93863.0,0.00149121]
[1740434675925,0.159749,93897.0,93864.0,0.10264569]
[1740434676166,0.15,93915.0,93865.0,0.01811518]
[1740434676436,0.005,93891.0,93866.0,0.10264569]
[1740434676946,0.15,93889.0,93845.0,0.0785]
[1740434677214,0.159811,93861.0,93845.0,0.0785]
[1740434677465,0.159805,93865.0,93845.0,0.0785]
[1740434677704,0.17436185,93855.0,93825.0,0.0816]
[1740434677951,0.21487237,93855.0,93825.0,0.0816]
[1740434678199,0.21487237,93855.0,93805.0,0.02]
[1740434678200,0.36338111,93855.0,93805.0,0.02]
[1740434678430,0.36338111,93855.0,93808.0,0.0782]
[1740434678682,1.2229073,93855.0,93854.0,0.00097872]
[1740434678907,1.4229073,93855.0,93854.0,0.00097872]
[1740434679133,1.4299073,93855.0,93854.0,7.2e-07]
[1740434679358,0.4505113,93855.0,93854.0,7.2e-07]
[1740434679597,0.4505113,93855.0,93792.0,0.0811]
[1740434679598,0.2,93839.0,93792.0,0.0811]
[1740434679818,0.2,93829.0,93793.0,0.10264569]
[1740434680056,0.34160115,93821.0,93793.0,0.10264569]
[1740434680277,0.159872,93825.0,93794.0,0.00149249]
[1740434680503,0.00149126,93838.0,93795.0,0.10264569]
[1740434680762,0.00782522,93828.0,93795.0,0.10264569]
[1740434680984,0.15,93826.0,93795.0,0.10264569]
[1740434681221,0.213195,93811.0,93780.0,0.0495]
[1740434681477,0.213195,93811.0,93777.0,0.0813]
[1740434681478,0.159921,93797.0,93795.0,0.00043311]
[1740434681728,0.159894,93812.0,93795.0,0.00043311]
[1740434681974,0.20782522,93828.0,93795.0,0.00043311]
[1740434681975,0.00782522,93828.0,93795.0,0.00043311]
[1740434682205,0.00782522,93810.0,93800.0,0.08527739]
[1740434682445,0.00782522,93810.0,93801.0,0.10264569]
[1740434683613,0.159879,93821.0,93801.0,0.06555078]
[1740434683840,0.159874,93824.0,93801.0,0.06555078]
[1740434684074,0.159892,93814.0,93801.0,0.0237189]
[1740434684293,0.00149126,93813.0,93777.0,0.02983134]
[1740434684552,0.00782522,93825.0,93778.0,0.10264569]
[1740434684553,0.159916,93799.0,93778.0,0.10264569]
[1740434684768,0.00149126,93798.0,93777.0,0.0001299]
[1740434684985,0.00149126,93811.0,93777.0,0.0001299]
[1740434685229,0.159914,93801.0,93777.0,0.10277559]
[1740434685454,0.01454085,93811.0,93781.0,0.08527739]
[1740434685703,0.01454085,93811.0,93778.0,0.114416]
[1740434685704,0.01454085,93811.0,93782.0,0.10413826]
[1740434685951,0.11718654,93811.0,93782.0,0.07854228]
[1740434686168,0.00149126,93810.0,93782.0,0.07155279]
[1740434686455,0.003,93801.0,93782.0,0.07155279]
[1740434686651,0.01603211,93800.0,93777.0,0.0001299]
[1740434686876,0.01454085,93798.0,93777.0,0.0001299]
[1740434687135,0.355434,93797.0,93777.0,0.0001299]
[1740434687343,0.01454085,93800.0,93777.0,0.0001299]
[1740434687569,0.01454085,93799.0,93777.0,0.0001299]
[1740434687803,0.159932,93790.0,93777.0,0.0001299]
[1740434688026,0.16603211,93808.0,93777.0,0.0001299]
[1740434688257,0.00782522,93796.0,93777.0,0.0001299]
[1740434688954,0.00782522,93796.0,93778.0,0.18792308]
[1740434689180,0.00782522,93796.0,93779.0,0.00149257]
[1740434689404,0.00782522,93796.0,93780.0,0.12160024]
[1740434689628,0.00782522,93796.0,93781.0,0.00149257]
[1740434689849,0.213199,93809.0,93782.0,0.10264569]
[1740434690072,0.00785392,93810.0,93782.0,0.10264569]
[1740434690300,0.159918,93798.0,93777.0,0.0009789]
[1740434690539,0.001698,93797.0,93782.0,0.08527739]
[1740434690758,0.001698,93797.0,93783.0,0.01903946]
[1740434691049,0.001698,93797.0,93777.0,0.0009789]
[1740434691249,0.001,93796.0,93783.0,0.01978378]
[1740434691706,0.001698,93797.0,93783.0,0.01978378]
[1740434691923,0.002698,93797.0,93783.0,0.01978378]
[1740434692370,0.15994,93785.0,93783.0,0.01978378]
[1740434692832,0.001,93796.0,93783.0,0.01978378]
[1740434693029,0.01454085,93793.0,93777.0,0.0009789]
[1740434693501,0.01454085,93795.0,93777.0,0.0009789]
[1740434693704,0.001,93796.0,93777.0,0.0009789]
[1740434693930,0.001698,93797.0,93777.0,0.0009789]
[1740434694426,0.001698,93797.0,93778.0,0.10413826]
[1740434694664,0.001698,93797.0,93779.0,0.01051172]
[1740434694902,0.001698,93797.0,93780.0,0.10264569]
[1740434695129,0.15994,93785.0,93777.0,0.0009789]
[1740434695358,0.159939,93786.0,93777.0,0.0009789]
[1740434695585,0.001698,93797.0,93777.0,0.0009789]
[1740434695835,0.499235,93796.0,93777.0,0.0009789]
[1740434696106,0.159927,93793.0,93777.0,0.0009789]
[1740434696350,0.10264569,93808.0,93777.0,0.0009789]
[1740434696351,0.213221,93800.0,93777.0,0.0009789]
[1740434696586,0.180284,93799.0,93777.0,0.0009789]
[1740434696835,0.10264569,93808.0,93777.0,0.0009789]
[1740434696836,0.00149126,93805.0,93777.0,0.0009789]
[1740434697071,0.46928969,93804.0,93777.0,0.0009789]
[1740434697301,0.18049126,93803.0,93777.0,0.0009789]
[1740434697532,0.586745,93802.0,93777.0,0.0009789]
[1740434697768,0.586745,93802.0,93778.0,0.10264569]
[1740434698022,0.001,93786.0,93778.0,0.10264569]
[1740434698248,0.001,93786.0,93779.0,0.01185503]
[1740434698472,0.213194,93811.0,93780.0,0.10264569]
[1740434698732,0.0916283,93800.0,93781.0,0.00149257]
[1740434698969,0.0916283,93800.0,93782.0,0.10264569]
[1740434699443,0.0916283,93800.0,93783.0,0.01036246]
[1740434699682,0.0916283,93800.0,93784.0,0.10264569]
[1740434700191,0.0916283,93800.0,93787.0,0.08527739]
[1740434700427,0.0916283,93800.0,93788.0,0.10413821]
[1740434700663,0.0916283,93800.0,93789.0,0.0785]
[1740434700894,0.0916283,93800.0,93790.0,0.12634576]
[1740434701124,0.0916283,93800.0,93790.0,0.12783819]
[1740434701391,0.0916283,93800.0,93790.0,0.12634576]
[1740434701874,0.0916283,93797.0,93791.0,0.00149236]
[1740434702104,0.0916283,93797.0,93792.0,0.13180724]
[1740434703062,0.0916283,93797.0,93793.0,0.0014924]
[1740434703291,0.0916283,93797.0,93794.0,0.10264569]
[1740434703767,0.0926283,93797.0,93794.0,0.10264569]
[1740434704245,0.0916283,93797.0,93794.0,0.10264569]
[1740434704518,0.0916283,93797.0,93777.0,0.0009789]
[1740434704755,0.0926283,93797.0,93778.0,0.10264569]
[1740434704994,0.0916283,93797.0,93778.0,0.07860683]
[1740434705243,0.001698,93800.0,93778.0,0.07860683]
[1740434705478,0.00786452,93796.0,93778.0,0.07860683]
[1740434705709,0.00786452,93796.0,93779.0,0.01588857]
[1740434705953,0.00786452,93796.0,93781.0,0.08527739]
[1740434706186,0.00786452,93796.0,93782.0,0.10264569]
[1740434707014,0.001698,93800.0,93782.0,0.10264569]
[1740434707015,0.00786452,93795.0,93783.0,0.08527739]
[1740434707248,0.001698,93800.0,93784.0,0.12312475]
[1740434707489,0.001698,93800.0,93794.0,0.08527739]
[1740434707732,0.001698,93800.0,93795.0,0.10413805]
[1740434708452,0.01047508,93818.0,93798.0,0.01376816]
[1740434708688,0.01047508,93818.0,93813.0,0.08527739]
[1740434708954,0.00149126,93856.0,93814.0,0.12643362]
[1740434709183,0.10264569,93855.0,93829.0,0.01376816]
[1740434709426,0.10264569,93855.0,93828.0,0.08527739]
[1740434709427,0.00149126,93873.0,93849.0,0.08527739]
[1740434709674,0.00149126,93890.0,93859.0,0.08527739]
[1740434709909,0.0492,93911.0,93859.0,0.08527739]
[1740434709910,0.0077231,93898.0,93877.0,0.34088064]
[1740434710137,0.00213224,93891.0,93877.0,0.34088064]
[1740434710399,0.00213224,93891.0,93889.0,0.34088064]
[1740434710880,0.00213224,93891.0,93890.0,0.10413671]
[1740434711110,0.00149126,93950.0,93891.0,0.0827]
[1740434711342,0.0159875,93914.0,93892.0,0.15690824]
[1740434711592,0.02221934,93914.0,93892.0,0.0971365]
[1740434712045,0.34088064,93913.0,93892.0,0.0971365]
[1740434712512,0.00623184,93898.0,93892.0,0.0971365]
[1740434712783,0.00623184,93898.0,93890.0,0.00996596]
[1740434713017,0.00623184,93893.0,93878.0,0.00996596]
[1740434713247,0.15,93900.0,93878.0,0.11261165]
[1740434713248,0.00623184,93889.0,93878.0,0.11261165]
[1740434713499,0.00623184,93889.0,93879.0,0.01126117]
[1740434713750,0.00623184,93895.0,93878.0,0.00996596]
[1740434713987,0.00623184,93882.0,93878.0,0.00996596]
[1740434714222,0.15,93889.0,93878.0,0.00996596]
[1740434714223,0.15623184,93879.0,93878.0,0.00996596]
[1740434714704,0.47299884,93879.0,93878.0,0.00996596]
[1740434714945,0.47299884,93879.0,93861.0,0.01582137]
[1740434714946,0.00623184,93864.0,93833.0,0.0827]
[1740434715184,0.00623184,93864.0,93834.0,0.10264569]
[1740434715425,0.34088064,93862.0,93834.0,0.10264569]
[1740434716145,0.16604684,93859.0,93834.0,0.10264569]
[1740434716382,0.00186467,93858.0,93834.0,0.10264569]
[1740434716616,0.00623184,93859.0,93834.0,0.10264569]
[1740434717383,0.00623184,93858.0,93834.0,0.10264569]
[1740434717624,0.00186464,93868.0,93835.0,0.00074722]
[1740434717861,0.00623184,93861.0,93836.0,0.11298498]
[1740434718095,0.00623184,93861.0,93837.0,0.00074684]
[1740434718334,0.00623184,93858.0,93838.0,0.10264569]
[1740434718826,0.00809645,93858.0,93838.0,0.10264569]
[1740434719082,0.00623184,93862.0,93839.0,0.01026457]
[1740434719329,0.2149166,93874.0,93840.0,0.10264569]
[1740434719330,0.00623184,93858.0,93840.0,0.10264569]
[1740434719564,0.00623184,93870.0,93841.0,0.00074712]
[1740434719801,0.00623184,93862.0,93842.0,0.10264569]
[1740434720048,0.15,93875.0,93843.0,0.01146574]
[1740434720049,0.00623184,93871.0,93843.0,0.01146574]
[1740434720283,0.00623184,93873.0,93844.0,0.1033922]
[1740434720516,0.004,93858.0,93844.0,0.1033922]
[1740434720758,0.004,93858.0,93845.0,0.11413148]
[1740434720998,0.212972,93909.0,93850.0,0.10264569]
[1740434721272,0.00623184,93896.0,93853.0,0.10264569]
[1740434721517,0.003,93871.0,93862.0,0.10264569]
[1740434721830,0.00623184,93909.0,93863.0,0.01301012]
[1740434722040,0.00623184,93912.0,93876.0,0.10264569]
[1740434722287,0.0158577,93914.0,93877.0,0.12834476]
[1740434722546,0.02208954,93914.0,93888.0,0.10264569]
[1740434722785,0.00623184,93911.0,93889.0,0.0007445]
[1740434723079,0.00623184,93913.0,93890.0,0.11498471]
[1740434723286,0.00623184,93911.0,93890.0,0.11498471]
[1740434723545,0.0158577,93914.0,93890.0,0.11498471]
[1740434723546,0.00623184,93910.0,93890.0,0.11498471]
[1740434723805,0.00623184,93910.0,93890.0,0.11398471]
[1740434724051,0.00623184,93908.0,93890.0,0.11398471]
[1740434724356,0.00623184,93899.0,93890.0,0.10164569]
[1740434724569,0.0018489,93891.0,93890.0,0.10564569]
[1740434724805,0.0018489,93891.0,93890.0,0.004]
[1740434725050,0.0008489,93891.0,93876.0,0.00043284]
[1740434725297,0.0018489,93891.0,93890.0,0.004]
[1740434726556,0.0018489,93891.0,93864.0,0.01358646]
[1740434726863,0.00128166,93891.0,93865.0,0.10339127]
[1740434727073,0.00228166,93891.0,93890.0,0.005]
[1740434727315,0.32013633,93891.0,93890.0,0.005]
[1740434727576,0.00623184,93889.0,93865.0,0.10264569]
[1740434727858,0.00623184,93886.0,93865.0,0.10264569]
[1740434728091,0.1598,93867.0,93866.0,0.00986966]
[1740434728363,0.33057269,93867.0,93866.0,0.00986966]
[1740434728599,0.32434085,93867.0,93866.0,0.00986966]
[1740434728851,0.82252454,93867.0,93866.0,0.00986966]
[1740434729065,2.06162654,93867.0,93866.0,0.00986966]
[1740434729298,3.28494931,93867.0,93866.0,0.00986966]
[1740434729525,2.88955715,93867.0,93866.0,0.00986966]
[1740434729802,0.213119,93844.0,93804.0,0.00986966]
[1740434730069,0.02077269,93838.0,93804.0,0.00986966]
[1740434730315,0.33062169,93838.0,93804.0,0.00986966]
[1740434730810,0.17077269,93838.0,93804.0,0.00986966]
[1740434731085,0.17077269,93838.0,93837.0,0.00282573]
[1740434731340,0.02077269,93838.0,93837.0,0.00282573]
[1740434731596,0.15,93850.0,93837.0,0.00182573]
[1740434731814,0.15623184,93838.0,93837.0,0.00382573]
[1740434732295,0.32464906,93838.0,93837.0,0.00382573]
[1740434732562,0.42729475,93838.0,93837.0,0.00382573]
[1740434732999,0.26542275,93838.0,93837.0,0.00182573]
[1740434733235,0.02154522,93838.0,93837.0,0.00182573]
[1740434733467,0.00654522,93838.0,93837.0,0.00182573]
[1740434733714,0.20466522,93844.0,93837.0,0.00182573]
[1740434733940,0.39673785,93843.0,93837.0,0.00182573]
[1740434734170,0.006,93838.0,93837.0,0.00182573]
[1740434734647,0.00522479,93838.0,93837.0,0.00182573]
[1740434735384,0.005,93844.0,93837.0,0.10447142]
[1740434735616,0.3265,93883.0,93853.0,0.045]
[1740434735872,0.0783,93887.0,93854.0,0.10339248]
[1740434736133,0.10264569,93886.0,93854.0,0.10264569]
[1740434736377,0.08524422,93878.0,93854.0,0.10264569]
[1740434736613,0.15,93874.0,93853.0,0.045]
[1740434736869,0.15,93872.0,93853.0,0.045]
[1740434737105,0.15,93864.0,93853.0,0.045]
[1740434737816,0.213072,93865.0,93853.0,0.045]
[1740434738031,0.01454085,93863.0,93853.0,0.045]
[1740434738560,0.15,93864.0,93854.0,0.10264569]
[1740434738778,0.005,93872.0,93855.0,0.01476457]
[1740434739040,0.01454085,93871.0,93855.0,0.01476457]
[1740434739300,0.005,93872.0,93856.0,0.10264569]
[1740434739756,0.005,93872.0,93856.0,0.11255069]
[1740434740045,0.0008489,93891.0,93856.0,0.11255069]
[1740434740248,0.001,93864.0,93857.0,0.02482153]
[1740434740474,0.001,93864.0,93858.0,0.10264569]
[1740434740701,0.0008485,93867.0,93858.0,0.10264569]
[1740434741390,0.0008485,93867.0,93859.0,0.009905]
[1740434741629,0.0008485,93867.0,93860.0,0.12253592]
[1740434741861,0.001,93864.0,93860.0,0.10264569]
[1740434742627,0.01454085,93863.0,93859.0,0.009905]
[1740434742870,0.001,93864.0,93859.0,0.009905]
[1740434743118,0.0008485,93867.0,93859.0,0.009905]
[1740434743359,0.00506997,93866.0,93860.0,0.009905]
[1740434744096,0.363077,93863.0,93860.0,0.009905]
[1740434744354,0.309808,93863.0,93860.0,0.009905]
[1740434744653,0.16487542,93862.0,93853.0,0.045]
[1740434744905,0.15,93854.0,93853.0,0.045]
[1740434745447,0.15506642,93854.0,93853.0,0.045]
[1740434746266,0.27225296,93854.0,93853.0,0.045]
[1740434746753,0.01960727,93854.0,93853.0,0.045]
[1740434747748,0.01960727,93854.0,93853.0,0.048]
[1740434748558,0.00506642,93854.0,93853.0,0.048]
[1740434749021,0.16454085,93860.0,93853.0,0.048]
[1740434749285,0.01454085,93860.0,93853.0,0.048]
[1740434749515,0.00506075,93859.0,93854.0,0.10264569]
[1740434749754,0.0008489,93891.0,93855.0,0.01506457]
[1740434749992,0.08524422,93890.0,93856.0,0.10264569]
[1740434750232,0.01454085,93877.0,93856.0,0.10264569]
[1740434750717,0.0008489,93891.0,93856.0,0.10264569]
[1740434750950,0.159763,93889.0,93856.0,0.10264569]
[1740434751185,0.213024,93886.0,93856.0,0.10264569]
[1740434751421,0.159769,93886.0,93856.0,0.10264569]
[1740434751668,0.213018,93889.0,93856.0,0.10264569]
[1740434751951,0.159778,93880.0,93856.0,0.10264569]
[1740434752190,0.15,93883.0,93856.0,0.10264569]
[1740434752717,0.0018485,93867.0,93856.0,0.10964569]
[1740434753172,0.08524422,93887.0,93856.0,0.10964569]
[1740434753402,0.01454085,93888.0,93856.0,0.10964569]
[1740434753658,0.01454085,93883.0,93856.0,0.10964569]
[1740434753876,0.01454085,93885.0,93857.0,0.01096457]
[1740434754107,0.3265,93919.0,93858.0,0.10264569]
[1740434754349,0.08524422,93901.0,93858.0,0.10264569]
[1740434754591,0.01941916,93890.0,93858.0,0.10264569]
[1740434754815,0.032018,93907.0,93862.0,0.10264569]
[1740434755090,0.191751,93907.0,93862.0,0.10264569]
[1740434755308,0.0476,93927.0,93872.0,0.10264569]
[1740434755552,0.0476,93927.0,93873.0,0.11291026]
[1740434755757,0.0476,93927.0,93875.0,0.10264569]
[1740434755758,0.032011,93926.0,93875.0,0.10264569]
[1740434755989,0.001,93887.0,93882.0,0.10264569]
[1740434756485,0.0476,93927.0,93882.0,0.10264569]
[1740434756711,0.00043276,93887.0,93882.0,0.10264569]
[1740434756948,0.00043276,93887.0,93883.0,0.01810457]
[1740434757186,0.00043276,93887.0,93884.0,0.10264569]
[1740434757693,0.00043276,93887.0,93886.0,0.10264569]
[1740434757931,0.00043276,93887.0,93886.0,0.25264569]
[1740434758183,0.0017026,93932.0,93890.0,0.309761]
[1740434758418,0.0017026,93932.0,93890.0,0.25264569]
[1740434758646,0.0001064,93948.0,93896.0,0.15]
[1740434758909,0.00012975,93932.0,93909.0,0.09949824]
[1740434759891,0.00012975,93932.0,93922.0,0.10264569]
[1740434761885,0.00493176,93931.0,93924.0,0.10264569]
[1740434762144,0.00012975,93932.0,93924.0,0.10264569]
[1740434762692,0.00012975,93932.0,93922.0,0.007]
[1740434762693,0.00012975,93932.0,93931.0,0.10264569]
[1740434762933,0.00012975,93932.0,93931.0,0.11291026]
[1740434763178,0.0001064,93948.0,93931.0,0.11291026]
[1740434763735,0.01454085,93946.0,93931.0,0.11291026]
[1740434764009,0.00493208,93947.0,93931.0,0.10264569]
[1740434764250,0.159688,93933.0,93931.0,0.007]
[1740434764499,0.212895,93943.0,93931.0,0.007]
[1740434764500,0.01538925,93932.0,93931.0,0.007]
[1740434764753,0.02032162,93932.0,93931.0,0.007]
[1740434765249,0.02032162,93932.0,93911.0,0.02148409]
[1740434765473,0.18001062,93932.0,93931.0,0.002]
[1740434765704,0.38799825,93932.0,93931.0,0.002]
[1740434765972,0.54293062,93932.0,93931.0,0.002]
[1740434766218,0.15972,93914.0,93912.0,0.10264569]
[1740434766429,0.15972,93914.0,93911.0,0.00012975]
[1740434766430,0.159722,93913.0,93911.0,0.00012975]
[1740434766654,0.212941,93923.0,93911.0,0.10277544]
[1740434766889,0.00493237,93912.0,93911.0,0.10277544]
[1740434767132,0.01454085,93919.0,93911.0,0.10277544]
[1740434767404,0.01454085,93917.0,93911.0,0.10277544]
[1740434767703,0.01454085,93912.0,93911.0,0.00012975]
[1740434767908,0.34538654,93912.0,93911.0,0.00012975]
[1740434768131,0.35031242,93912.0,93911.0,0.00012975]
[1740434768375,0.56323642,93912.0,93911.0,7.5e-07]
[1740434768591,0.35031242,93912.0,93911.0,7.5e-07]
[1740434768824,0.01454085,93909.0,93844.0,0.0016968]
[1740434769039,0.08524422,93875.0,93853.0,0.00948365]
[1740434769469,0.00489714,93874.0,93853.0,0.00948365]
[1740434769760,0.159822,93854.0,93844.0,0.0016968]
[1740434770232,0.08524422,93865.0,93844.0,0.0016968]
[1740434770469,0.16472114,93853.0,93852.0,0.00043276]
[1740434770692,0.159824,93853.0,93852.0,0.00043276]
[1740434770922,0.16471426,93853.0,93852.0,0.00043276]
[1740434771169,0.4319008,93853.0,93852.0,0.00043276]
[1740434771413,0.5377158,93853.0,93852.0,0.00043276]
[1740434771638,0.32925511,93853.0,93852.0,0.00043276]
[1740434771868,0.16943111,93853.0,93852.0,0.00043276]
[1740434772534,0.16943111,93853.0,93852.0,0.00643276]
[1740434772791,0.3591858,93853.0,93852.0,0.00643276]
[1740434772994,0.35732102,93853.0,93852.0,0.00643276]
[1740434773429,0.36375302,93853.0,93852.0,0.00643276]
[1740434773661,1.07200802,93853.0,93852.0,0.00643276]
[1740434773882,1.11960802,93853.0,93852.0,0.00643276]
[1740434774360,1.19740802,93853.0,93852.0,0.00643276]
[1740434774583,1.19740802,93853.0,93852.0,0.00043276]
[1740434775030,0.309838,93845.0,93844.0,0.0016968]
[1740434775239,4.60217954,93845.0,93844.0,0.0016968]
[1740434775467,3.51702296,93845.0,93838.0,0.001697]
[1740434775711,0.15,93813.0,93777.0,0.000849]
[1740434775933,0.16454085,93809.0,93777.0,0.000849]
[1740434776165,0.01454085,93807.0,93777.0,0.000849]
[1740434776412,0.159908,93804.0,93777.0,0.000849]
[1740434776691,0.00186566,93803.0,93777.0,0.000849]
[1740434776888,0.159915,93800.0,93777.0,0.000849]
[1740434777160,0.17445285,93802.0,93788.0,0.00182753]
[1740434777410,0.00485307,93799.0,93788.0,0.00182753]
[1740434777645,0.159916,93799.0,93788.0,0.00182753]
[1740434777869,0.00485307,93798.0,93788.0,0.00182753]
[1740434778098,0.00485307,93798.0,93789.0,0.10264569]
[1740434778313,0.001,93809.0,93790.0,0.01044732]
[1740434778537,0.001,93809.0,93791.0,0.10264569]
[1740434778760,0.001,93809.0,93791.0,0.10339422]
[1740434778988,0.0472,93837.0,93791.0,0.10339422]
[1740434779205,0.03204,93823.0,93793.0,0.10264569]
[1740434779417,0.001,93798.0,93794.0,0.01231514]
[1740434779632,0.001,93798.0,93795.0,0.10264569]
[1740434779847,0.001,93798.0,93796.0,0.00074823]
[1740434780073,0.001,93798.0,93797.0,0.10264569]
[1740434780298,0.001,93798.0,93797.0,0.34434177]
[1740434780567,0.082,93860.0,93798.0,0.15]
[1740434780811,0.032033,93842.0,93815.0,0.10264569]
[1740434781037,0.00468072,93853.0,93824.0,0.10264569]
[1740434781253,0.032028,93862.0,93826.0,0.048]
[1740434781465,0.09429607,93879.0,93827.0,0.00074653]
[1740434781678,0.09429607,93879.0,93826.0,0.198]
[1740434781911,0.00468072,93878.0,93827.0,0.01454085]
[1740434782122,0.08710822,93894.0,93851.0,0.10264569]
[1740434782338,0.00043222,93878.0,93851.0,0.10264569]
[1740434782552,0.001,93854.0,93851.0,0.10264569]
[1740434782777,0.001,93854.0,93852.0,0.0007464]
[1740434782994,0.001,93854.0,93828.0,0.25264569]
[1740434782995,0.001,93854.0,93853.0,0.10339159]
[1740434783224,0.001,93854.0,93853.0,0.11298485]
[1740434783438,0.001,93854.0,93828.0,0.25264569]
[1740434783439,0.001,93854.0,93828.0,0.15]
[1740434783654,0.001,93854.0,93835.0,0.15]
[1740434783863,0.159826,93852.0,93836.0,0.10264569]
[1740434784079,0.01454085,93874.0,93851.0,0.002]
[1740434784080,0.01454085,93872.0,93851.0,0.002]
[1740434784302,0.08524422,93874.0,93851.0,0.002]
[1740434784303,0.32436685,93852.0,93851.0,0.002]
[1740434784551,0.15,93849.0,93811.0,0.02120903]
[1740434784776,0.01454085,93850.0,93812.0,0.10264569]
[1740434785003,0.159853,93836.0,93835.0,0.005]
[1740434785478,0.159872,93826.0,93812.0,0.10264569]
[1740434785704,0.00186511,93843.0,93813.0,0.01026457]
[1740434785917,0.00186511,93843.0,93812.0,0.10264569]
[1740434785918,0.00186511,93843.0,93814.0,0.10264569]
[1740434786136,0.01454085,93845.0,93814.0,0.10264569]
[1740434786348,0.15,93848.0,93815.0,0.00074808]
[1740434786565,0.001,93849.0,93816.0,0.10264569]
[1740434786777,0.15,93843.0,93817.0,0.01095235]
[1740434786988,0.159834,93847.0,93818.0,0.10264569]
[1740434787203,0.001,93849.0,93818.0,0.10339333]
[1740434787420,0.001,93849.0,93828.0,0.10264569]
[1740434787629,0.001,93849.0,93829.0,0.10339247]
[1740434787881,0.001,93849.0,93830.0,0.09153925]
[1740434788172,0.001,93849.0,93831.0,0.10339247]
[1740434788381,0.001,93849.0,93840.0,0.10264569]
[1740434788600,0.001,93849.0,93848.0,0.10264569]
[1740434788817,0.032021,93895.0,93849.0,0.15]
[1740434789037,0.032021,93895.0,93855.0,0.149]
[1740434789254,0.08524422,93894.0,93856.0,0.10339149]
[1740434789752,0.21305,93875.0,93856.0,0.10264569]
[1740434789948,0.08524422,93894.0,93857.0,0.00074611]
[1740434789949,0.01454085,93892.0,93857.0,0.00074611]
[1740434790167,0.00506731,93891.0,93858.0,0.11288487]
[1740434790402,0.00506731,93891.0,93859.0,0.00074561]
[1740434790623,0.00143222,93894.0,93861.0,0.10264569]
[1740434790849,0.00143222,93894.0,93862.0,0.00074549]
[1740434791077,0.00143222,93894.0,93863.0,0.10264569]
[1740434791320,0.00143222,93894.0,93864.0,0.01210853]
[1740434791553,0.00143222,93894.0,93869.0,0.15]
[1740434791775,0.00043222,93894.0,93871.0,0.15]
[1740434792049,0.00043222,93894.0,93872.0,0.10339093]
[1740434792308,0.00043222,93894.0,93880.0,0.10264569]
[1740434792506,0.00043222,93894.0,93883.0,0.10264569]
[1740434792725,0.00043222,93894.0,93884.0,0.1507444]
[1740434792976,0.00043222,93894.0,93893.0,0.10264569]
[1740434793198,0.00043222,93894.0,93893.0,0.15821026]
[1740434794131,0.00043222,93894.0,93893.0,0.11291026]
[1740434794589,0.00043222,93894.0,93893.0,0.10264569]
[1740434795780,0.00043222,93894.0,93893.0,0.10964569]
[1740434795994,0.00043222,93894.0,93893.0,0.007]
[1740434796211,0.00043222,93894.0,93873.0,0.02533909]
[1740434796432,0.00043222,93894.0,93874.0,0.10264569]
[1740434796686,0.0051053,93893.0,93874.0,0.10264569]
[1740434796931,0.00043222,93894.0,93893.0,0.007]
[1740434797157,0.15043222,93894.0,93893.0,0.007]
[1740434798351,0.31018622,93894.0,93893.0,0.007]
[1740434798576,0.15043222,93894.0,93893.0,0.007]
[1740434799059,0.15043222,93894.0,93875.0,0.10264569]
[1740434799298,0.21304,93879.0,93852.0,0.078]
[1740434799523,0.15977,93885.0,93874.0,0.003]
[1740434799815,0.15,93888.0,93874.0,0.003]
[1740434800048,0.15,93888.0,93853.0,0.10339174]
[1740434800279,0.15,93888.0,93875.0,0.003]
[1740434800509,0.159783,93877.0,93875.0,0.003]
[1740434801471,0.15,93876.0,93875.0,0.003]
[1740434801698,0.159817,93857.0,93856.0,0.0016966]
[1740434801939,0.3265,93870.0,93856.0,0.0016966]
[1740434802168,0.15,93867.0,93856.0,0.0016966]
[1740434802399,0.159805,93864.0,93856.0,0.0016966]
[1740434802853,0.4765,93870.0,93856.0,0.0016966]
[1740434803074,0.159816,93858.0,93856.0,0.0016966]
[1740434803754,0.15,93857.0,93856.0,0.0016966]
[1740434803981,0.15186469,93857.0,93856.0,0.0016966]
[1740434804209,0.15,93857.0,93856.0,0.0016966]
[1740434804640,0.15186478,93857.0,93856.0,0.0016966]
[1740434804867,0.25451047,93857.0,93856.0,0.0016966]
[1740434805080,0.25264569,93857.0,93856.0,0.0016966]
[1740434805292,0.38561069,93857.0,93856.0,0.0016966]
[1740434805504,0.38561069,93857.0,93856.0,0.0056966]
[1740434805505,0.46391069,93857.0,93856.0,0.0056966]
[1740434806003,0.46391069,93857.0,93856.0,0.0016966]
[1740434806274,0.33094569,93857.0,93856.0,0.0016966]
[1740434806482,0.65024869,93857.0,93856.0,0.0056966]
[1740434807197,0.65531012,93857.0,93856.0,0.0056966]
[1740434807417,0.63392634,93857.0,93856.0,0.0056966]
[1740434807883,0.63392634,93857.0,93856.0,0.0016966]
[1740434808079,0.63592634,93857.0,93856.0,0.0016966]